bitfinex/quotes_SOLUSD_20241016
["timestamp","ask_amount","ask_price","bid_price","bid_amount"]
[1729087569971,20.0,154.91,154.79,15.551]
[1729087570492,32.4665,154.96,154.82,20.0548614]
[1729087570665,32.4665,154.96,154.86,6.4573]
[1729087570666,16.1357,154.94,154.86,6.4573]
[1729087570867,6.455,154.92,154.88,6.4564]
[1729087571307,23.78874097,154.97,154.86,20.0548614]
[1729087571591,6.73556437,154.98,154.94,6.4538]
[1729087571592,6.4524,154.98,154.94,6.4538]
[1729087571799,16.425351,155.01,154.94,6.4538]
[1729087572098,16.425351,155.01,154.92,36.1918614]
[1729087572266,16.425351,155.01,154.92,16.137]
[1729087572267,32.553951,155.01,154.92,16.137]
[1729087572468,6.4536,154.96,154.92,16.137]
[1729087572972,6.4537,154.95,154.9,6.4557]
[1729087573181,0.1,154.99,154.85,6.1426]
[1729087573369,16.1351,154.95,154.85,6.1426]
[1729087573581,22.3509,154.95,154.86,6.4574]
[1729087573790,20.0,154.93,154.83,15.7095]
[1729087573975,43.776884,154.97,154.87,16.142]
[1729087574170,20.0,154.97,154.89,16.1397]
[1729087574366,0.626951,155.01,154.89,38.49665203]
[1729087574667,6.4524,154.98,154.94,6.454]
[1729087574868,6.4521,154.99,154.95,6.4536]
[1729087575072,6.4521,154.99,154.94,6.454]
[1729087575793,6.4524,154.98,154.94,6.454]
[1729087576090,6.4529,154.97,154.93,16.1358]
[1729087576301,6.4534,154.96,154.9,51.3072]
[1729087576479,20.0,154.98,154.9,36.1391]
[1729087576676,16.1301,154.99,154.91,6.4551]
[1729087576677,6.4533,154.96,154.91,6.4551]
[1729087576872,6.4533,154.96,154.92,6.4549]
[1729087577071,6.4529,154.97,154.92,6.4549]
[1729087579803,20.626951,155.01,154.92,16.1368]
[1729087580098,6.4529,154.97,154.92,22.5916]
[1729087580805,23.1639,154.96,154.85,6.4585]
[1729087580980,6.4564,154.89,154.85,22.6025]
[1729087581174,6.4564,154.89,154.85,16.144]
[1729087581395,16.1357,154.94,154.85,16.144]
[1729087581585,6.4558,154.9,154.85,22.6018]
[1729087581777,6.4552,154.92,154.87,6.4569]
[1729087581977,6.4552,154.92,154.88,6.4564]
[1729087582388,23.0639,154.96,154.84,32.00805203]
[1729087582588,6.4531,154.97,154.93,6.4544]
[1729087582800,6.4524,154.98,154.93,6.4544]
[1729087583602,38.2692,155.0,154.91,16.1378]
[1729087583817,22.1398,155.0,154.9,75.78493603]
[1729087584306,6.4549,154.92,154.87,6.4567]
[1729087584604,20.2,154.99,154.86,6.2756]
[1729087584605,0.1,154.99,154.86,6.2756]
[1729087584904,6.4546,154.93,154.88,6.4565]
[1729087585202,6.4533,154.96,154.91,6.455]
[1729087586111,15.5972,155.0,154.91,20.0]
[1729087586277,6.4525,154.98,154.93,6.4541]
[1729087587109,6.4529,154.97,154.93,6.4541]
[1729087587592,6.4529,154.97,154.92,16.1365]
[1729087587593,15.5972,155.0,154.94,6.4541]
[1729087587782,6.4519,155.0,154.95,6.4533]
[1729087588600,7.078151,155.01,154.94,16.1349]
[1729087588804,0.626951,155.01,154.94,16.1349]
[1729087589004,6.4524,154.98,154.94,16.1349]
[1729087589179,6.4524,154.98,154.94,22.5889]
[1729087589693,6.4521,154.99,154.94,22.5889]
[1729087589892,0.626951,155.01,154.95,6.4535]
[1729087590189,6.4517,155.0,154.95,6.4535]
[1729087590717,6.4517,155.0,154.96,6.4531]
[1729087590882,6.452,154.99,154.94,22.5886]
[1729087591085,6.4539,154.95,154.91,16.1377]
[1729087591406,20.0,154.99,154.9,6.4557]
[1729087591594,6.4538,154.95,154.9,6.4557]
[1729087591790,20.0,154.99,154.88,16.1408]
[1729087591791,6.4544,154.94,154.89,6.456]
[1729087592003,6.4544,154.94,154.88,16.1408]
[1729087592305,21.122395,154.97,154.9,6.4556]
[1729087592481,6.4537,154.95,154.9,6.4556]
[1729087592680,20.0,154.97,154.93,6.4543]
[1729087592902,6.4526,154.98,154.94,6.4539]
[1729087594085,6.4526,154.98,154.93,6.4543]
[1729087594286,6.4526,154.98,154.94,6.454]
[1729087594504,20.0,155.0,154.94,6.454]
[1729087594693,6.4524,154.98,154.93,16.1359]
[1729087594895,20.0,155.0,154.89,32.2808]
[1729087595198,20.0,155.0,154.87,6.4567]
[1729087595199,6.4552,154.92,154.87,6.4567]
[1729087595407,6.4546,154.93,154.88,6.4562]
[1729087595810,6.4546,154.93,154.89,6.4561]
[1729087596713,15.1584,154.97,154.86,6.2756]
[1729087596894,20.0,154.96,154.9,16.1388]
[1729087597095,15.1584,154.97,154.9,16.1388]
[1729087597401,6.74114342,155.0,154.86,6.3756]
[1729087597596,6.4526,154.98,154.94,6.4539]
[1729087597811,17.57253446,155.01,154.92,22.5916]
[1729087597812,16.1293,155.0,154.92,22.5916]
[1729087598713,6.4536,154.95,154.92,16.1368]
[1729087599085,6.4533,154.96,154.92,16.1368]
[1729087599389,6.4523,154.99,154.93,6.4541]
[1729087599588,6.4523,154.99,154.92,16.1368]
[1729087599589,20.0,155.0,154.92,16.1368]
[1729087599902,6.4537,154.95,154.91,6.4553]
[1729087600291,6.4534,154.96,154.91,6.4553]
[1729087600919,6.4541,154.94,154.9,6.4554]
[1729087601424,6.4537,154.95,154.9,6.4554]
[1729087601792,6.4537,154.95,154.91,6.4551]
[1729087602204,20.0,154.98,154.91,6.4551]
[1729087602430,6.4531,154.97,154.93,6.4541]
[1729087603821,6.454,154.95,154.91,16.1378]
[1729087604330,6.454,154.95,154.91,22.5931]
[1729087605229,6.4541,154.94,154.9,6.4557]
[1729087605431,16.1304,154.99,154.88,16.1409]
[1729087605728,6.4535,154.96,154.92,6.4548]
[1729087605897,20.0,154.98,154.87,43.776884]
[1729087606100,6.4532,154.96,154.92,22.5918]
[1729087606323,20.0,154.98,154.92,16.137]
[1729087606629,6.4531,154.97,154.92,22.5916]
[1729087606802,26.4523,154.99,154.92,16.137]
[1729087606999,4.80638251,154.98,154.94,16.1348]
[1729087607202,1.74893446,155.01,154.92,16.4118]
[1729087607429,6.4516,155.0,154.96,22.5857]
[1729087608009,6.4516,155.0,154.96,16.1326]
[1729087608212,6.4521,154.99,154.95,6.4535]
[1729087609024,1.74893446,155.01,154.96,23.776884]
[1729087609202,1.74893446,155.01,154.98,6.4521]
[1729087609405,1.74893446,155.01,154.95,6.4535]
[1729087609606,1.74893446,155.01,154.93,22.5968]
[1729087609830,6.4528,154.98,154.93,29.0509]
[1729087610131,6.4532,154.96,154.93,16.1358]
[1729087610338,17.87733446,155.01,154.91,20.0]
[1729087610636,6.4529,154.97,154.93,6.4544]
[1729087610806,6.4529,154.97,154.92,6.4545]
[1729087611011,6.4529,154.97,154.91,20.0]
[1729087611203,1.74893446,155.01,154.9,20.0]
[1729087611406,12.50488975,155.0,154.93,16.136]
[1729087611616,24.80957298,154.99,154.93,16.136]
[1729087611833,4.80957298,154.98,154.93,16.136]
[1729087612328,4.80957298,154.98,154.9,20.0]
[1729087612532,6.4533,154.96,154.91,6.4552]
[1729087613038,6.4529,154.97,154.93,6.4544]
[1729087613739,6.4529,154.97,154.87,0.1]
[1729087613740,35.9716,154.98,154.85,38.7186]
[1729087614035,35.9716,154.98,154.87,32.2838]
[1729087614036,12.49594946,154.97,154.87,32.2838]
[1729087614206,15.9716,154.98,154.87,32.3838]
[1729087614410,4.80664456,154.97,154.93,16.1357]
[1729087614610,4.80664456,154.96,154.93,22.5902]
[1729087614930,22.4241,154.98,154.93,22.5902]
[1729087615133,4.80679835,154.97,154.93,16.1357]
[1729087615336,26.4523,154.99,154.94,6.4539]
[1729087615637,12.49865117,154.98,154.94,6.4539]
[1729087615843,4.80721313,154.97,154.94,6.4539]
[1729087616132,26.4523,154.99,154.94,6.4539]
[1729087616329,12.49744192,154.98,154.94,6.4539]
[1729087616528,4.80670843,154.97,154.94,6.4539]
[1729087616709,26.4523,154.99,154.94,6.4539]
[1729087617130,4.80700785,154.98,154.94,6.4539]
[1729087617339,26.4523,154.99,154.94,6.4539]
[1729087617530,4.80766517,154.98,154.91,20.0]
[1729087617715,4.80766517,154.97,154.91,20.0]
[1729087617918,6.4533,154.96,154.91,6.4552]
[1729087618426,6.4532,154.96,154.92,6.4546]
[1729087619211,6.4532,154.96,154.9,16.1393]
[1729087619407,6.4532,154.96,154.92,6.4547]
[1729087619815,6.4538,154.95,154.9,16.1393]
[1729087620108,6.4538,154.95,154.91,6.4552]
[1729087620439,20.0,154.99,154.93,6.4542]
[1729087620618,18.95209156,154.98,154.94,6.454]
[1729087620820,4.80753521,154.97,154.94,6.454]
[1729087621123,6.4525,154.98,154.94,6.454]
[1729087622114,1.12201481,155.0,154.94,6.454]
[1729087622314,11.25900209,154.99,154.94,6.454]
[1729087622531,4.80690209,154.98,154.94,6.454]
[1729087622814,6.4521,154.99,154.94,6.454]
[1729087623015,4.80662658,154.98,154.94,6.454]
[1729087623322,6.4521,154.99,154.94,6.454]
[1729087623531,4.80676201,154.98,154.97,6.4528]
[1729087623756,7.078251,155.01,154.96,6.4531]
[1729087624053,12.49802635,155.0,154.97,6.4527]
[1729087624221,12.49802635,155.0,154.93,6.2899]
[1729087624222,12.49811616,155.0,154.98,6.4523]
[1729087624649,4.80696775,154.99,154.98,6.4523]
[1729087625142,0.626951,155.01,154.98,6.4523]
[1729087626642,0.626951,155.01,155.0,6.4516]
[1729087628718,0.626951,155.01,155.0,76.75458464]
[1729087629322,0.626951,155.01,155.0,78.26974921]
[1729087631247,6.609,155.15,155.04,0.1]
[1729087631556,11.24552217,155.14,155.09,6.4476]
[1729087631845,6.4463,155.13,155.08,22.5683]
[1729087632163,6.609,155.15,155.08,16.1201]
[1729087632321,6.609,155.15,155.1,16.118]
[1729087632522,12.434051,155.2,155.1,22.5653]
[1729087632841,12.434051,155.2,155.07,16.4563]
[1729087632842,21.1208949,155.18,155.07,32.5776]
[1729087633050,4.7963508,155.17,155.08,6.4482]
[1729087633220,21.1208949,155.18,155.08,6.4482]
[1729087633429,0.382,155.17,155.08,6.4482]
[1729087633654,6.4465,155.13,155.08,6.4482]
[1729087634148,0.382,155.12,155.08,6.4482]
[1729087634453,6.4471,155.11,155.07,16.1213]
[1729087634658,20.0,155.14,155.01,20.0]
[1729087634825,23.776884,155.13,155.04,20.0]
[1729087635024,6.4491,155.06,155.01,22.5788]
[1729087635241,24.158884,155.13,155.01,16.1277]
[1729087635242,6.4495,155.05,155.01,16.1277]
[1729087635957,6.4483,155.08,155.03,6.45]
[1729087636422,6.4483,155.08,155.04,6.4498]
[1729087637246,6.4483,155.08,155.03,6.4502]
[1729087638127,6.4483,155.08,155.04,6.4498]
[1729087638661,6.4479,155.09,155.04,6.4498]
[1729087639164,6.4469,155.12,155.06,16.1227]
[1729087639366,6.4462,155.13,155.09,6.4478]
[1729087640061,6.4459,155.14,155.1,6.4474]
[1729087640225,1.75526675,155.17,155.06,32.2452]
[1729087640429,16.1750949,155.18,155.11,6.4469]
[1729087640735,6.445,155.16,155.11,6.4469]
[1729087641752,6.4454,155.15,155.11,6.4469]
[1729087641931,16.87293604,155.18,155.11,6.4469]
[1729087642131,6.445,155.16,155.11,6.4469]
[1729087642431,6.4448,155.17,155.12,22.5625]
[1729087642647,1.81873604,155.18,155.14,6.4456]
[1729087642958,6.4429,155.21,155.16,6.4449]
[1729087643138,6.4445,155.18,155.14,16.1138]
[1729087644332,17.1303058,155.22,155.14,22.5595]
[1729087644938,17.1303058,155.22,155.1,1.28873075]
[1729087645155,17.1303058,155.22,155.14,20.0]
[1729087645337,6.4442,155.18,155.14,20.0]
[1729087645537,6.4436,155.2,155.15,6.4452]
[1729087645734,6.4437,155.19,155.15,6.4452]
[1729087645942,6.4436,155.2,155.15,6.4452]
[1729087646130,17.1303058,155.22,155.14,36.1143]
[1729087646454,6.4441,155.18,155.14,42.56]
[1729087646659,6.4445,155.17,155.13,20.0]
[1729087646858,16.1085,155.2,155.11,22.5641]
[1729087647080,6.4454,155.15,155.11,22.5641]
[1729087647536,6.4454,155.15,155.11,22.5642]
[1729087648236,20.0,155.19,155.11,16.1173]
[1729087648561,6.4467,155.12,155.08,28.754]
[1729087648861,6.4467,155.12,155.08,22.5683]
[1729087649354,20.0,155.17,155.08,16.1202]
[1729087649551,6.4458,155.14,155.1,6.4474]
[1729087649758,6.4454,155.15,155.1,6.4474]
[1729087649956,16.1128,155.16,155.04,6.2849]
[1729087650150,6.4467,155.12,155.08,20.0]
[1729087650454,16.1128,155.16,155.05,16.1232]
[1729087650455,6.4473,155.11,155.06,6.449]
[1729087650643,22.0369,155.15,155.04,6.4495]
[1729087650644,16.1149,155.14,155.04,6.4495]
[1729087650843,23.776884,155.12,155.02,16.1264]
[1729087651052,6.4487,155.07,155.02,22.5767]
[1729087651354,6.4487,155.07,155.03,6.4503]
[1729087652372,6.4483,155.08,155.04,20.0]
[1729087652834,6.449,155.07,155.02,16.1264]
[1729087653041,16.1173,155.12,155.02,16.1264]
[1729087653042,6.4486,155.08,155.03,6.4502]
[1729087653257,20.0,155.11,155.02,22.5771]
[1729087653479,6.4492,155.06,155.02,16.1264]
[1729087653669,6.4501,155.04,155.0,6.4515]
[1729087653863,20.0,155.07,154.99,16.1296]
[1729087654062,6.4513,155.01,154.96,22.5861]
[1729087654464,6.4516,155.0,154.96,22.5861]
[1729087654680,20.0,155.05,154.96,22.5861]
[1729087654868,6.4512,155.01,154.96,22.5861]
[1729087655070,6.4512,155.01,154.97,6.4528]
[1729087655464,21.6329,155.08,154.93,6.0458]
[1729087655465,21.6329,155.08,154.93,6.1458]
[1729087655670,21.6329,155.08,154.99,20.0]
[1729087655671,26.73733914,155.07,154.99,20.0]
[1729087655981,16.3742,155.14,155.02,6.3211]
[1729087656353,16.3742,155.14,155.04,16.1244]
[1729087656354,23.10922284,155.14,155.04,16.1244]
[1729087656580,6.4483,155.08,155.03,6.4502]
[1729087656760,6.4488,155.07,155.03,6.4502]
[1729087656959,16.1161,155.13,155.03,6.4502]
[1729087657176,6.448,155.09,155.04,6.4497]
[1729087657378,6.4475,155.1,155.05,6.4493]
[1729087657765,16.1161,155.13,155.03,16.1253]
[1729087657766,6.448,155.09,155.04,6.4498]
[1729087658073,6.4487,155.07,155.03,16.1253]
[1729087658268,56.008084,155.13,155.01,20.0]
[1729087658780,20.0,155.12,155.01,20.0]
[1729087658980,16.3742,155.14,155.04,55.73524145]
[1729087659166,16.3742,155.14,155.07,36.1216]
[1729087659474,16.3742,155.14,155.07,16.1216]
[1729087659684,16.3742,155.14,155.01,31.95835745]
[1729087659685,6.4478,155.1,155.05,6.4494]
[1729087663157,6.4469,155.12,155.07,6.4486]
[1729087663380,26.4463,155.13,155.08,6.448]
[1729087663886,6.4473,155.11,155.06,22.5711]
[1729087664461,6.4487,155.07,155.03,22.576]
[1729087664665,16.117,155.12,154.98,6.008]
[1729087664666,20.0,155.1,154.98,6.008]
[1729087664964,6.4479,155.09,155.04,6.4496]
[1729087665368,20.0,155.1,155.04,6.4496]
[1729087665369,6.4484,155.08,155.04,6.4496]
[1729087666282,6.4484,155.08,155.03,22.576]
[1729087666491,6.4481,155.09,155.05,6.4494]
[1729087666660,6.4477,155.1,155.06,6.4489]
[1729087668161,16.1156,155.13,155.06,6.4489]
[1729087668367,6.4462,155.13,155.09,6.4477]
[1729087669679,6.4449,155.16,155.12,6.4464]
[1729087669889,15.4971,155.18,155.13,16.1149]
[1729087670189,16.1061,155.23,155.16,6.4448]
[1729087670190,16.61765068,155.22,155.16,6.4448]
[1729087670373,6.4433,155.2,155.15,6.4452]
[1729087671058,6.4453,155.15,155.11,6.4468]
[1729087671264,1.12077283,155.19,155.11,20.0]
[1729087671578,1.12077283,155.19,155.12,16.1156]
[1729087671768,6.4445,155.18,155.13,6.4461]
[1729087672564,1.12060413,155.21,155.12,16.1156]
[1729087672783,1.12060413,155.21,155.14,6.4455]
[1729087672784,6.4438,155.19,155.14,6.4455]
[1729087673171,6.4433,155.2,155.14,16.1137]
[1729087673387,6.4438,155.19,155.14,22.5593]
[1729087673885,6.4431,155.21,155.16,6.4447]
[1729087674270,1.12039172,155.22,155.14,16.1137]
[1729087674467,6.4439,155.19,155.15,6.4453]
[1729087674868,6.4439,155.19,155.14,16.1137]
[1729087675190,6.4441,155.18,155.14,16.1137]
[1729087675698,1.12039172,155.22,155.15,6.4452]
[1729087675885,21.12039172,155.22,155.15,6.4452]
[1729087676396,6.4432,155.21,155.16,6.4446]
[1729087676581,6.4437,155.19,155.15,6.4453]
[1729087677972,6.443,155.21,155.17,6.4445]
[1729087679065,6.4425,155.22,155.17,6.4445]
[1729087679673,6.4425,155.22,155.16,16.1115]
[1729087680183,6.4425,155.22,155.17,6.4444]
[1729087680486,6.4429,155.21,155.17,6.4444]
[1729087680692,6.4436,155.2,155.16,16.1115]
[1729087680868,6.4452,155.16,155.11,6.4469]
[1729087681069,6.4452,155.16,155.1,16.118]
[1729087681304,6.4452,155.16,155.12,6.4464]
[1729087681480,6.4446,155.17,155.12,6.4464]
[1729087681896,20.0,155.2,155.08,6.4393]
[1729087682125,22.5352,155.24,155.2,6.4432]
[1729087682126,16.1958,155.24,155.2,6.4432]
[1729087682289,6.4414,155.25,155.2,6.4432]
[1729087682471,23.22819523,155.28,155.22,6.4423]
[1729087682796,6.4406,155.27,155.21,22.5494]
[1729087683681,20.0,155.27,155.21,16.1067]
[1729087684003,20.0,155.27,155.18,36.11]
[1729087684302,23.22819523,155.28,155.21,6.4426]
[1729087684303,6.4411,155.26,155.21,6.4426]
[1729087685903,6.4415,155.25,155.2,16.1077]
[1729087686095,6.4415,155.25,155.2,22.5506]
[1729087686903,22.1081,155.28,155.18,20.0]
[1729087687205,6.4408,155.26,155.22,22.5481]
[1729087688006,6.4405,155.27,155.23,6.4419]
[1729087688181,6.4408,155.26,155.22,16.1057]
[1729087688891,6.4408,155.26,155.22,22.548]
[1729087690201,6.4407,155.27,155.22,16.1057]
[1729087690413,15.3621,155.31,155.21,31.95835745]
[1729087690580,6.4408,155.26,155.22,6.4424]
[1729087690784,1.11998482,155.29,155.2,16.1072]
[1729087691203,6.4409,155.26,155.21,6.4425]
[1729087691585,6.4409,155.26,155.22,6.4423]
[1729087692898,17.21958482,155.29,155.22,6.4423]
[1729087693210,6.4405,155.27,155.22,6.4423]
[1729087693409,6.4403,155.28,155.22,16.1057]
[1729087693617,15.3621,155.31,155.22,16.1057]
[1729087693618,6.4396,155.29,155.24,6.4414]
[1729087693805,20.67700902,155.32,155.24,6.4414]
[1729087693998,20.0,155.31,155.24,6.4414]
[1729087694517,4.58090902,155.32,155.26,6.4407]
[1729087694699,4.58090902,155.32,155.22,43.776884]
[1729087694904,6.439,155.31,155.27,6.4401]
[1729087695210,0.1,155.34,155.22,20.0]
[1729087695390,6.44,155.28,155.24,6.4416]
[1729087695787,6.4396,155.29,155.24,6.4416]
[1729087696401,6.4391,155.3,155.26,6.4406]
[1729087696614,6.4396,155.29,155.25,22.5437]
[1729087696806,16.0956,155.33,155.25,16.1027]
[1729087697010,6.4397,155.29,155.25,16.1027]
[1729087697520,22.2212,155.32,155.22,39.91735373]
[1729087697521,39.874084,155.31,155.23,6.4419]
[1729087697821,6.44,155.28,155.24,6.4413]
[1729087698194,22.2212,155.32,155.24,16.1036]
[1729087698416,6.4392,155.3,155.26,6.4404]
[1729087698790,6.4398,155.29,155.25,6.4411]
[1729087698993,38.3173,155.32,155.24,16.1036]
[1729087699418,6.4405,155.27,155.24,16.1036]
[1729087700216,22.2212,155.32,155.26,16.1013]
[1729087700417,6.4394,155.3,155.26,16.1013]
[1729087700594,6.4387,155.31,155.27,6.44]
[1729087702212,16.0931,155.35,155.27,6.44]
[1729087702401,6.5653,155.36,155.26,16.1013]
[1729087702402,6.4381,155.33,155.26,16.1013]
[1729087702598,6.4381,155.33,155.26,36.01865373]
[1729087702803,6.4375,155.34,155.29,6.4392]
[1729087703191,13.0023,155.36,155.31,6.4386]
[1729087703391,6.4374,155.35,155.3,6.439]
[1729087703712,6.4378,155.34,155.28,16.0994]
[1729087704198,6.4382,155.33,155.28,22.5392]
[1729087704400,6.4375,155.34,155.3,6.4389]
[1729087704708,6.4372,155.35,155.3,6.4389]
[1729087705092,15.9537,155.37,155.3,16.0974]
[1729087705409,6.4361,155.38,155.33,6.4375]
[1729087705619,6.4354,155.39,155.32,16.095]
[1729087705804,6.2338,155.41,155.34,16.0928]
[1729087706002,6.4353,155.4,155.35,6.4368]
[1729087706308,6.4354,155.39,155.35,6.4368]
[1729087706515,6.4361,155.38,155.34,16.0928]
[1729087706896,6.4365,155.37,155.32,6.4382]
[1729087707393,6.4355,155.39,155.34,6.4371]
[1729087708112,6.4358,155.38,155.33,22.5318]
[1729087708916,6.4358,155.39,155.34,6.4371]
[1729087710201,15.7415,155.42,155.35,16.0918]
[1729087710393,6.4346,155.41,155.36,6.4366]
[1729087711320,6.5537,155.45,155.37,16.09]
[1729087711616,6.4334,155.44,155.37,16.09]
[1729087712413,6.4334,155.44,155.39,6.4353]
[1729087712809,16.0207,155.46,155.34,36.0933]
[1729087713324,6.4345,155.42,155.36,6.4365]
[1729087713620,6.4346,155.41,155.36,6.4365]
[1729087713812,6.4341,155.43,155.37,6.4359]
[1729087714122,0.626951,155.47,155.41,6.4345]
[1729087714294,0.626951,155.47,155.4,16.3767]
[1729087714496,0.626951,155.47,155.4,32.4636]
[1729087714699,0.626951,155.47,155.37,20.0]
[1729087715921,6.4341,155.43,155.38,6.4355]
[1729087716223,0.626951,155.47,155.39,16.0879]
[1729087716421,6.4337,155.44,155.39,22.5232]
[1729087716628,6.4337,155.43,155.39,16.0879]
[1729087716819,6.4345,155.42,155.36,32.468]
[1729087717633,0.626951,155.47,155.36,16.3767]
[1729087717795,0.626951,155.47,155.45,6.4328]
[1729087718320,0.626951,155.47,155.46,20.0]
[1729087719122,0.626951,155.47,155.45,6.4328]
[1729087719632,0.626951,155.47,155.44,16.0825]
[1729087719819,0.626951,155.47,155.45,20.0]
[1729087720017,0.626951,155.47,155.45,26.4328]
[1729087720423,0.626951,155.47,155.45,6.4328]
[1729087721910,0.626951,155.47,155.44,16.0825]
[1729087721911,0.626951,155.47,155.44,22.5157]
[1729087722531,0.626951,155.47,155.46,6.4325]
[1729087722714,0.626951,155.47,155.44,16.0825]
[1729087723119,0.626951,155.47,155.45,6.4329]
[1729087724507,0.626951,155.47,155.44,16.0825]
[1729087724930,0.626951,155.47,155.44,22.5157]
[1729087725138,0.626951,155.47,155.46,6.4325]
[1729087725425,0.626951,155.47,155.44,16.0825]
[1729087725628,0.626951,155.47,155.44,22.5156]
[1729087725809,0.626951,155.47,155.45,6.4328]
[1729087726634,0.626951,155.47,155.44,22.5158]
[1729087727032,0.626951,155.47,155.41,16.0862]
[1729087727609,0.626951,155.47,155.42,6.4339]
[1729087727932,0.626951,155.47,155.42,6.434]
[1729087728534,7.059151,155.47,155.41,22.5207]
[1729087730422,0.626951,155.47,155.42,6.4337]
[1729087730713,7.059151,155.47,155.42,6.4337]
[1729087731245,0.626951,155.47,155.39,32.1767]
[1729087731408,0.626951,155.47,155.44,6.4333]
[1729087732328,0.626951,155.47,155.43,22.517]
[1729087733425,0.626951,155.47,155.45,6.4328]
[1729087733626,0.626951,155.47,155.43,16.0834]
[1729087734232,0.626951,155.47,155.43,22.5171]
[1729087734445,0.626951,155.47,155.43,16.0834]
[1729087734628,0.626951,155.47,155.41,6.4345]
[1729087734810,6.4325,155.46,155.41,6.4345]
[1729087736839,0.626951,155.47,155.4,16.0873]
[1729087737152,6.4346,155.41,155.36,22.5275]
[1729087737316,6.4345,155.42,155.37,6.4362]
[1729087738143,6.2972,155.46,155.38,16.0886]
[1729087738441,16.857551,155.47,155.43,6.4337]
[1729087738650,0.626951,155.47,155.44,6.4331]
[1729087738851,0.626951,155.47,155.43,6.4336]
[1729087739417,0.626951,155.47,155.45,6.4328]
[1729087739621,0.626951,155.47,155.46,6.4325]
[1729087740715,0.626951,155.47,155.46,26.4325]
[1729087741217,21.5853,155.61,155.48,0.1]
[1729087741413,21.5853,155.61,155.56,6.4283]
[1729087741642,21.5853,155.61,155.57,16.0697]
[1729087742221,7.052451,155.63,155.57,16.0697]
[1729087742441,0.626951,155.63,155.58,6.4275]
[1729087742648,0.626951,155.63,155.57,16.0697]
[1729087742950,7.052451,155.63,155.58,6.4274]
[1729087743150,0.626951,155.63,155.58,6.4274]
[1729087743317,0.626951,155.63,155.57,16.0697]
[1729087743520,7.052451,155.63,155.57,22.4975]
[1729087743720,0.626951,155.63,155.57,16.0697]
[1729087744419,0.626951,155.63,155.55,19.87007351]
[1729087744748,0.626951,155.63,155.61,6.4262]
[1729087744922,0.626951,155.63,155.59,16.0669]
[1729087745117,0.626951,155.63,155.62,6.4259]
[1729087746554,0.626951,155.63,155.62,26.5259]
[1729087746744,0.626951,155.63,155.62,51.68740991]
[1729087746925,6.70836524,155.74,155.68,16.0583]
[1729087747125,6.4201,155.76,155.7,6.4224]
[1729087747322,16.863451,155.78,155.77,6.4197]
[1729087747323,0.626951,155.78,155.77,6.4197]
[1729087748061,0.626951,155.78,155.77,51.47995281]
[1729087748224,0.626951,155.78,155.77,26.4197]
[1729087748430,0.626951,155.78,155.77,50.196584]
[1729087749152,0.626951,155.78,155.77,26.4197]
[1729087749354,0.626951,155.78,155.77,50.196584]
[1729087749734,0.626951,155.78,155.77,6.4197]
[1729087749949,0.626951,155.78,155.77,26.4197]
[1729087750733,0.626951,155.78,155.77,50.196584]
[1729087750931,0.626951,155.78,155.77,50.322074]
[1729087751143,0.626951,155.78,155.77,82.07744354]
[1729087751350,0.626951,155.78,155.77,81.97744354]
[1729087751652,6.4139,155.92,155.84,6.4164]
[1729087751853,6.4139,155.92,155.83,16.0424]
[1729087751854,6.4139,155.92,155.86,6.4158]